lending/lending_fUSD_20240111
["ID","MTS","AMOUNT","RATE_DAILY","PERIOD"]
[311218710,1704984672595,-476.652944,0.00051,14]
[311218711,1704984672605,-150.0,0.00051,29]
[311218712,1704984672615,-150.0,0.00051019,7]
[311218713,1704984672626,-350.0,0.00051041,120]
[311218714,1704984672636,-150.53030045,0.00051045,48]
[311218715,1704984672646,-29995.0,0.0005109,3]
[311218716,1704984672656,-569493.6859341,0.0005111,30]
[311218717,1704984672665,-4202361.09031083,0.0005111,30]
[311218718,1704984672687,-500.0,0.00042465,30]
[311218719,1704984672697,-500.0,0.00042739,30]
[311218720,1704984672706,-305.49924381,0.0005111,30]
[311218721,1704984672718,-240614.20780845,0.0005111,30]
[311218722,1704984672729,-1562.06784729,0.0005111,30]
[311218723,1704984672742,-150322.1578642,0.0005111,30]
[311218724,1704984672753,-12944.00820338,0.0005111,30]
[311218725,1704984672762,-199915.87903599,0.0005111,30]
[311218726,1704984672774,-809.08328103,0.0005111,30]
[311218727,1704984672785,-964.95996,0.0005111,30]
[311218728,1704984672813,-1333.8513691,0.00042465,5]
[311218729,1704984672893,-23.89711499,0.00042465,5]
[311218730,1704984672905,-350.57623504,0.00042465,5]
[311218731,1704984672917,-65.79528087,0.00042465,5]
[311218732,1704984672926,-500.0,0.00042739,30]
[311218733,1704984672936,-569.99,0.00043013,30]
[311218734,1704984672945,-518.45,0.00044109,30]
[311218735,1704984672955,-1737.77983913,0.0005111,30]
[311218736,1704984672966,-24291.59704804,0.0005111,30]
[311218737,1704984672978,-529.14,0.0005111,30]
[311218738,1704984673040,-1438.26,0.00042463,4]
[311218739,1704984673050,-500.0,0.00042465,30]
[311218740,1704984673060,-500.0,0.00042739,30]
[311218741,1704984673069,-500.0,0.00043013,30]
[311218742,1704984673079,-500.0,0.00043013,30]
[311218743,1704984673090,-500.0,0.00043013,30]
[311218744,1704984673100,-569.99,0.00043287,30]
[311218745,1704984673110,-500.0,0.00043287,30]
[311218746,1704984673120,-500.0,0.00043287,30]
[311218747,1704984673130,-406.59635256,0.00043561,30]
[311218748,1704984673254,-663.18122325,0.000381,2]
[311218749,1704984673264,-465.32148445,0.00042463,4]
[311218750,1704984673273,-155.0,0.00042463,4]
[311218751,1704984673282,-309.89531508,0.00042463,4]
[311218752,1704984673293,-500.0,0.00042465,30]
[311218753,1704984673303,-500.0,0.00042465,30]
[311218754,1704984673312,-500.0,0.00042739,30]
[311218755,1704984673321,-500.0,0.00042739,30]
[311218756,1704984673331,-500.0,0.00042739,30]
[311218757,1704984673343,-500.0,0.00043013,30]
[311218758,1704984673352,-500.0,0.00043287,30]
[311218759,1704984673362,-163.39364744,0.00043561,30]
[311218760,1704984673372,-464.94,0.00043561,30]
[311218761,1704984673381,-500.0,0.00043561,30]
[311218762,1704984673391,-569.99,0.00043835,30]
[311218763,1704984673402,-536.45501766,0.00043835,30]
[311218764,1704984673411,-3291.64435569,0.00043999,2]
[311218765,1704984673421,-569.99,0.00044109,30]
[311218766,1704984673430,-569.99,0.00044383,30]
[311218767,1704984673440,-1102.0,0.000444,7]
[311218768,1704984673450,-150.0,0.00044499,30]
[311218769,1704984673459,-150.0,0.00044499,30]
[311218770,1704984673469,-569.99,0.00044657,30]
[311218771,1704984673479,-150.0,0.00044899,15]
[311218772,1704984673489,-150.0,0.00044899,30]
[311218773,1704984673499,-150.0,0.00044899,30]
[311218774,1704984673509,-150.0,0.00044899,30]
[311218775,1704984673518,-517.26913219,0.000449,2]
[311218776,1704984673528,-150.0,0.00044998,30]
[311218777,1704984673538,-150.0,0.00044999,30]
[311218778,1704984673548,-263748.35450642,0.0005111,30]
[311218779,1704984673573,-500.0,0.00043561,30]
[311218780,1704984673582,-150.0,0.00044899,15]
[311218781,1704984673594,-569.99,0.00044931,30]
[311218782,1704984673603,-23078.51,0.0005111,30]
[311218783,1704984673618,-150.0,0.00044899,30]
[311218784,1704984673628,-1472.52060123,0.0005111,30]
[311218785,1704984673639,-23643.30537736,0.0005111,30]
[311218786,1704984673651,-59810.31568604,0.0005111,30]
[311218787,1704984673663,-106365.92695764,0.0005111,30]
[311218788,1704984673676,-5504.01938089,0.0005111,30]
[311218789,1704984673687,-5402.62779731,0.0005111,30]
[311218790,1704984673698,-1280.04622821,0.0005111,30]
[311218791,1704984673711,-2052.59417215,0.0005111,30]
[311218792,1704984673723,-2336.4214375,0.0005111,30]
[311218793,1704984673734,-1081.36307041,0.0005111,30]
[311218794,1704984673746,-4519.6253272,0.0005111,30]
[311218795,1704984673766,-179.629477,0.0003701,2]
[311218796,1704984673776,-131.33677572,0.00042465,30]
[311218797,1704984673788,-552.61322428,0.00042465,30]
[311218798,1704984673798,-47628.38677572,0.0005111,30]
[311218799,1704984673913,-620.87228107,0.00042463,4]
[311218800,1704984673925,-683.95,0.00042739,30]
[311218801,1704984673936,-500.0,0.00043013,30]
[311218802,1704984673950,-500.0,0.00043013,30]
[311218803,1704984673961,-683.95,0.00043013,30]
[311218804,1704984673971,-500.0,0.00043287,30]
[311218805,1704984673983,-500.0,0.00043287,30]
[311218806,1704984673994,-500.0,0.00043835,30]
[311218807,1704984674005,-364.04147327,0.00043999,4]
[311218808,1704984674021,-491.16669647,0.00043999,4]
[311218809,1704984674033,-488.87747025,0.00043999,4]
[311218810,1704984674046,-500.0,0.00044109,30]
[311218811,1704984674062,-169.2826101,0.00044998,30]
[311218812,1704984674073,-293.32648215,0.00044999,7]
[311218813,1704984674085,-500.0,0.00044999,7]
[311218814,1704984674098,-243.37502235,0.00044999,7]
[311218815,1704984674110,-195.5509881,0.00045,30]
[311218816,1704984674120,-569.99,0.00045205,30]
[311218817,1704984674143,-569.99,0.00045479,30]
[311218818,1704984674156,-2219738.5279804,0.0005111,30]
[311218819,1704984674173,-478.78,0.0005111,30]
[311218820,1704984674186,-320.56969854,0.0005111,30]
[311218821,1704984674200,-529.98609174,0.0005111,30]
[311218822,1704984674215,-980.63643129,0.0005111,30]
[311218823,1704984674371,624.3317652,0.00035,2]
[311218824,1704984674455,684.24,0.00035,14]
[311218825,1704984674678,6050.65171332,0.00035,4]
[311218826,1704984675312,16421.55414446,0.00035,2]
[311218827,1704984675426,5185.3168697,0.00035,2]
[311218828,1704984675555,1490.0,0.0003499,8]
[311218829,1704984675694,205.0,0.00034533,2]
[311218830,1704984676147,300.0,0.00035,36]
[311218831,1704984676224,600.0,0.00035,36]
[311218832,1704984676349,5000.0,0.00035,2]
[311218833,1704984676771,20141.04630213,0.00034,2]
[311218834,1704984677641,3000000.0,0.00023,2]
[311218835,1704984678637,-1000000.0,0.00023,2]
[311218836,1704984679933,-1000000.0,0.00023,2]
[311218837,1704984680954,-1000000.0,0.00023,2]
[311218838,1704984682086,-1000000.0,0.00023,2]
[311218839,1704984683090,-1000000.0,0.00023,2]
[311218840,1704984684146,-1000000.0,0.00023,2]
[311218842,1704984700501,-288.34262207,0.00022999,2]
[311218843,1704984700524,-2265.06059582,0.00022999,2]
[311218844,1704984700547,-579.61035159,0.00022999,2]
[311218845,1704984700570,-11067.26543426,0.00022999,2]
[311218846,1704984700593,-621.69425978,0.00022999,2]
[311218847,1704984700618,-334717.55181794,0.00023,2]
[311218849,1704984713208,-692.73695879,0.00025,2]
[311218850,1704984713232,-1307.26304121,0.000329,30]
[311218851,1704984714399,-939.37733012,0.00024999,2]
[311218852,1704984714424,-852.9271586,0.000329,30]
[311218853,1704984714447,-207.69551128,0.00034,2]
[311218854,1704984714888,-2000.0,0.00034,2]
[311218859,1704984763911,2000.0,0.00023,2]
[311218860,1704984763934,2000.0,0.00023,2]
[311218861,1704984763957,2825.40838862,0.00023,2]
[311218862,1704984772652,7407.36299805,0.00023,2]
[311218864,1704984820655,382.65515112,0.00023,2]
[311218865,1704984822156,1980.0,0.0002313,2]
[311218866,1704984835998,36845.34484888,0.00023,2]
[311218867,1704984836029,140227.70353187,0.00023,2]
[311218868,1704984854034,7545.51242447,0.0002,2]
[311218871,1704984872083,150.97967695,0.00022,2]
[311218875,1704984894369,-219.99906844,0.00022998,2]
[311218876,1704984894393,-1000.0,0.00022998,2]
[311218877,1704984894414,-150.0,0.00022999,2]
[311218878,1704984894435,-150.0,0.00022999,2]
[311218879,1704984894457,-3186.46864652,0.00022999,2]
[311218880,1704984894479,-25181.22155303,0.00022999,2]
[311218881,1704984894503,-70112.31073201,0.00023,2]
[311218884,1704984907293,733.96491575,0.00022309,2]
[311218886,1704984910194,3186.46864652,0.00022079,2]
[311218888,1704984919132,-528.57068135,0.00022768,2]
[311218889,1704984919154,-3612.59545792,0.00022769,2]
[311218890,1704984919175,-219.99906844,0.00022999,2]
[311218891,1704984919195,-155.0,0.00022999,2]
[311218892,1704984919216,-278.62795246,0.00022999,2]
[311218893,1704984919241,-5205.20683983,0.00023,2]
[311218894,1704984926106,-1000000.0,0.00023,2]
[311218895,1704984926882,-1000000.0,0.00023,2]
[311218896,1704984928072,-665142.24725156,0.00023,2]
[311218897,1704984928095,-2183.4171,0.00023,2]
[311218898,1704984928119,-2229.86472185,0.00024999,2]
[311218899,1704984928142,-220.79426589,0.00024999,2]
[311218900,1704984928165,-191.96207289,0.00025099,2]
[311218901,1704984928188,-666.43476675,0.00025099,2]
[311218902,1704984928211,-4897.6232344,0.00025199,2]
[311218903,1704984928233,-200.96872574,0.00025199,2]
[311218904,1704984928260,-210.0,0.00025299,2]
[311218905,1704984928285,-922.90928631,0.00029697,2]
[311218906,1704984928314,-9957.6731869,0.00029799,2]
[311218907,1704984928344,-7430.34156886,0.000298,2]
[311218908,1704984928370,-43049.87194131,0.000299,2]
[311218909,1704984928397,-135494.5044558,0.0003,4]
[311218910,1704984928425,-72797.28205453,0.0003,4]
[311218911,1704984928455,-4789.94,0.00031958,2]
[311218912,1704984928481,-164.56,0.00031958,2]
[311218913,1704984928509,-500.0,0.000321,2]
[311218914,1704984928537,-167.58210242,0.00032299,2]
[311218915,1704984928574,-167.58210242,0.00032299,2]
[311218916,1704984928603,-10685.1213833,0.00032299,4]
[311218917,1704984928631,-37929.31977907,0.00032299,2]
[311218919,1704984974240,401.67001773,0.0002231,2]
[311218920,1704984995256,6075.32821196,0.0002231,2]
[311218921,1704984999115,177.58110042,0.0002231,2]
[311218922,1704985011471,155.1949606,0.0002231,2]
[311218923,1704985015500,155.40226791,0.0002231,2]
[311218924,1704985016665,7413.23671885,0.0002231,2]
[311218925,1704985017368,543.37000018,0.0002231,2]
[311218926,1704985035732,182210.21,0.00031,30]
[311218928,1704985043939,-259.81123898,0.00022783,2]
[311218929,1704985043960,-155.18876102,0.00022784,2]
[311218930,1704985052476,51872.75950116,0.00031,30]
[311218931,1704985063241,67533.64,0.0003,20]
[311218936,1704985203426,155.41322987,0.000225,2]
[311218937,1704985215549,1864.4632,0.00022684,14]
[311218938,1704985221415,156.95390495,0.000225,2]
[311218939,1704985278424,609.12126606,0.000225,2]
[311218940,1704985283784,6076.49149549,0.000225,2]
[311218941,1704985298261,609.12126606,0.000225,2]
[311218942,1704985303774,2244.46225203,0.000225,2]
[311218943,1704985318238,609.12126606,0.000225,2]
[311218944,1704985338426,605.66266934,0.000225,2]
[311218945,1704985351780,721.84,0.000225,4]
[311218946,1704985462458,-9.07342227,0.00022784,2]
[311218947,1704985462495,-3186.46864652,0.00022863,2]
[311218948,1704985462529,-939.37733012,0.00022863,2]
[311218949,1704985462570,-524.01619295,0.00022864,2]
[311218950,1704985462610,-418.95927661,0.00022865,2]
[311218951,1704985462642,-259.81123898,0.00022866,2]
[311218952,1704985462675,-219.99906844,0.00022867,2]
[311218953,1704985462719,-3324.52712476,0.00022867,2]
[311218954,1704985462753,-2897.77192156,0.00022868,2]
[311218955,1704985462784,-7770.70671844,0.0002287,2]
[311218956,1704985462816,-150.0,0.00022871,2]
[311218957,1704985462847,-167.58210244,0.00022872,2]
[311218958,1704985462879,-1086.34135529,0.00022882,2]
[311218959,1704985462908,-2336.91508864,0.00022885,2]
[311218960,1704985462938,-155.0,0.00023,2]
[311218961,1704985462971,-532.01558641,0.00023,2]
[311218962,1704985463001,-234.59607502,0.00023,2]
[311218963,1704985463031,-208.84882825,0.00023,2]
[311218964,1704985463062,-247.01828226,0.00023,2]
[311218965,1704985463091,-360.58392018,0.00023,2]
[311218966,1704985463122,-155.37706083,0.00023,2]
[311218967,1704985463151,-155.23060761,0.00023,2]
[311218968,1704985463181,-500.0,0.00023,2]
[311218969,1704985463213,-5183.28447778,0.00023,2]
[311218973,1704985606758,158.58624909,0.00022964,2]
[311218979,1704985758105,-524.01619295,0.00024999,2]
[311218980,1704985758127,-350.0,0.00025,3]
[311218981,1704985758146,-171.97,0.00025643,2]
[311218982,1704985766333,287.26990936,0.00025515,2]
[311219045,1704985834115,-214.01660333,0.000269,2]
[311219047,1704985834127,-400.0,0.00027,3]
[311219049,1704985834137,-512.61251411,0.00028498,7]
[311219051,1704985834149,-1050.0,0.00028498,7]
[311219053,1704985834161,-1560.0,0.00028498,7]
[311219054,1704985834174,-1943.84130926,0.00028498,7]
[311219055,1704985834184,-1199.24599083,0.00028798,2]
[311219056,1704985834194,-450.0,0.00029,3]
[311219057,1704985834203,-219.90355198,0.00029,2]
[311219058,1704985834215,-214.01660333,0.00029898,2]
[311219059,1704985834226,-2437.72472011,0.00029982,2]
[311219060,1704985834235,-150.0,0.00029982,2]
[311219061,1704985834245,-466.86370226,0.00029983,2]
[311219062,1704985834255,-2338.17456223,0.0002999,2]
[311219063,1704985834272,-2859.14138188,0.0002999,2]
[311219064,1704985834282,-242.1048025,0.00029998,2]
[311219065,1704985834292,-155.2791912,0.00029998,2]
[311219066,1704985834302,-155.53796426,0.00029998,2]
[311219067,1704985834312,-2896.49308312,0.00029998,2]
[311219068,1704985834322,-191.58388218,0.00029998,2]
[311219069,1704985834333,-352.53755795,0.00029998,2]
[311219070,1704985834342,-621.1675088,0.00029998,2]
[311219071,1704985834352,-499.99,0.00029998,2]
[311219072,1704985834362,-1626.55542811,0.00029998,2]
[311219073,1704985834501,-338.000001,0.00029998,2]
[311219074,1704985834514,-3952.04457089,0.00029998,2]
[311219075,1704985834523,-235.67264847,0.00029998,2]
[311219076,1704985834534,-163.72210375,0.00029998,2]
[311219077,1704985834544,-405.37255056,0.00029998,2]
[311219078,1704985834553,-109.30416597,0.00029999,2]
[311219079,1704985834887,-48.01564531,0.00029999,2]
[311219080,1704985834898,-3319.24864663,0.00029999,2]
[311219081,1704985834909,-517.92701806,0.0003,4]
[311219128,1704985837757,-130.27975483,0.0003,4]
[311219130,1704985837768,-283.77880731,0.0003,4]
[311219132,1704985837778,-883.76517896,0.0003,4]
[311219134,1704985837788,-3255.8890189,0.0003,4]
[311219138,1704985837832,-14311.33765735,0.0003,4]
[311219139,1704985837842,-157.14140716,0.0003,2]
[311219140,1704985837852,-51869.45713069,0.0003,2]
[311219141,1704985837862,-155.4450733,0.0003,4]
[311219142,1704985837873,-176.39774473,0.0003,4]
[311219143,1704985837882,-155.26494261,0.0003,4]
[311219144,1704985837892,-357.21207229,0.0003,4]
[311219145,1704985837902,-337.44,0.00030328,2]
[311219146,1704985837912,-228.93,0.00030768,2]
[311219147,1704985837922,-157.0,0.00030999,2]
[311219148,1704985837932,-350.19227,0.00031,3]
[311219149,1704985838112,-149.80773,0.00031,3]
[311219150,1704985838123,-2046.0,0.000311,3]
[311219151,1704985838132,-2500.0,0.00031162,4]
[311219152,1704985838143,-150.0,0.00031202,2]
[311219153,1704985838153,-1685.93991223,0.00031217,2]
[311219154,1704985838166,-1019.06008777,0.00031217,2]
[311219155,1704985838177,-393.56,0.00031236,2]
[311219156,1704985838186,-200.0,0.00031272,2]
[311219157,1704985838196,-10000.0,0.00031293,2]
[311219158,1704985838206,-14455.81,0.00031319,2]
[311219159,1704985838220,-2000.0,0.00031402,2]
[311219160,1704985838230,-750.0,0.00031453,2]
[311219161,1704985838239,-165.23,0.00031495,2]
[311219162,1704985838251,-3000.0,0.00032,2]
[311219163,1704985838261,-4395.669913,0.0003201,2]
[311219164,1704985838271,-3174.82844622,0.00032125,2]
[311219165,1704985838285,-507.09419417,0.00032125,2]
[311219166,1704985838297,-723.11641905,0.00032125,2]
[311219167,1704985838323,-3005.50426186,0.00032125,2]
[311219866,1704985852349,-4822.04013169,0.00032125,2]
[311219867,1704985852365,-6452.52654701,0.00032125,2]
[311219868,1704985852375,-500.0,0.00032128,2]
[311219869,1704985852384,-236.21,0.00032174,2]
[311219870,1704985852393,-168.04,0.00032174,2]
[311219871,1704985852403,-200.0,0.00032174,2]
[311219872,1704985852412,-269.75,0.00032207,2]
[311219873,1704985852421,-200.0,0.00032241,2]
[311219874,1704985852430,-371.70079814,0.00032298,4]
[311219875,1704985852439,-5394.79974968,0.00032299,2]
[311219876,1704985852449,-7911.0,0.000323,3]
[311219877,1704985852458,-269.75,0.00032377,2]
[311219878,1704985852467,-269.75,0.00032546,2]
[311219879,1704985852483,-337.44,0.00032592,2]
[311219880,1704985852493,-168.92,0.00032627,2]
[311219881,1704985852502,-269.75,0.00032716,2]
[311219882,1704985852511,-397.28,0.00032877,15]
[311219883,1704985852521,-269.75,0.00032885,2]
[311219884,1704985852530,-387.20014982,0.000329,2]
[311219885,1704985852539,-91.65688819,0.00032921,2]
[311219886,1704985852799,-708.34311181,0.00032921,2]
[311219887,1704985852809,-164.69,0.00032971,2]
[311219888,1704985852819,-2925.89,0.00032972,2]
[311219889,1704985852828,-150.00046957,0.00033,2]
[311219890,1704985852838,-550.0,0.00033,3]
[311219891,1704985852848,-269.75,0.00033055,2]
[311219892,1704985852857,-168.04,0.00033152,2]
[311219893,1704985852867,-269.75,0.00033224,2]
[311219894,1704985852877,-204.0,0.00033362,2]
[311219895,1704985852886,-269.75,0.00033394,2]
[311219896,1704985852895,-269.75,0.00033563,2]
[311219897,1704985852904,-269.75,0.00033733,2]
[311219898,1704985852913,-2026.06109671,0.00033898,2]
[311219899,1704985852925,-473.93890329,0.00033898,2]
[311219900,1704985852935,-525.36377799,0.00033898,2]
[311219901,1704985852946,-474.63622201,0.00033898,2]
[311219902,1704985852955,-269.75,0.00033902,2]
[311219903,1704985852965,-251.14817734,0.00033996,4]
[311219904,1704985852979,-348.98382831,0.00033996,4]
[311219905,1704985852988,-180.35111077,0.00033996,4]
[311219906,1704985852999,-244.85362809,0.00033996,4]
[311219907,1704985853008,-155.29285085,0.00033996,4]
[311219908,1704985853018,-165.45840668,0.00033996,4]
[311219909,1704985853027,-155.86245513,0.00033996,4]
[311219910,1704985853036,-1653.95493272,0.00033996,4]
[311219911,1704985853046,-1315.51277525,0.00033997,4]
[311219912,1704985853055,-651.89476975,0.00033997,4]
[311219913,1704985853064,-340.90679444,0.00033997,4]
[311219914,1704985853073,-155.0,0.00033997,4]
[311219915,1704985853082,-155.36444738,0.00033997,4]
[311219916,1704985853092,-942.535731,0.00033998,4]
[311219917,1704985853104,-1192.18782255,0.00033998,4]
[311219918,1704985853113,-5194.85220679,0.00033998,4]
[311219919,1704985853123,-461.28089593,0.00033998,4]
[311219920,1704985853133,-270.43975547,0.00033998,2]
[311219921,1704985853142,-436.11823403,0.00033998,4]
[311219922,1704985853152,-401.23573356,0.00033998,4]
[311219923,1704985853161,-576.9581811,0.00033998,4]
[311219924,1704985853171,-228.78576383,0.00033998,4]
[311219925,1704985853181,-15794.00363798,0.00033998,2]
[311219926,1704985853190,-251.18155046,0.00033998,4]
[311219927,1704985853200,-234.570411,0.00033998,2]
[311219928,1704985853209,-246.33521087,0.00033998,4]
[311219929,1704985853219,-3164.94449681,0.00033998,4]
[311219930,1704985853230,-20117.46075347,0.00034,2]
[311219931,1704985853269,-973.62,0.00034,2]
[311219932,1704985853281,-10318.08663312,0.00034,2]
[311219933,1704985853290,-201.6432844,0.00034,2]
[311219934,1704985853299,-291.41637742,0.00034,4]
[311219935,1704985853308,-1000.0,0.00034,4]
[311219936,1704985853317,-22158.58482151,0.00034,2]
[311219937,1704985853326,-269.75,0.00034072,2]
[311219938,1704985853336,-168.04,0.00034131,2]
[311219939,1704985853345,-269.75,0.00034241,2]
[311219940,1704985853354,-153.84,0.00034322,2]
[311219941,1704985853364,-269.75,0.00034411,2]
[311219942,1704985853373,-449.1664085,0.0003442,7]
[311219943,1704985853382,-20094.82322152,0.000345,30]
[311219944,1704985853398,-11307.08677848,0.000345,30]
[311219945,1704985853407,-3104.613618,0.0003452,2]
[311219946,1704985853417,-2150.10511,0.0003452,2]
[311219947,1704985853426,-336.294067,0.0003452,2]
[311219948,1704985853435,-190.55,0.00034521,2]
[311219949,1704985853446,-269.75,0.0003458,2]
[311219950,1704985853481,-11324.20358883,0.0003468,30]
[311219951,1704985853491,-269.75,0.0003475,2]
[311219952,1704985853500,-4656.920428,0.00034794,2]
[311219953,1704985853510,-3225.157665,0.00034794,2]
[311219954,1704985853519,-504.441101,0.00034794,2]
[311219955,1704985853528,-337.44,0.00034856,2]
[311219956,1704985853538,-300.0,0.00034897,2]
[311219957,1704985853547,-16271.29634075,0.00034898,4]
[311219958,1704985853557,-196.45843195,0.00034898,4]
[311219959,1704985853566,-151827.48747068,0.000349,2]
[311219960,1704985853575,-1297.81403618,0.000349,2]
[311219961,1704985853589,-262.64059735,0.000349,8]
[311219962,1704985853598,-269.75,0.00034919,2]
[311219963,1704985853607,-6209.227237,0.00034931,2]
[311219964,1704985853616,-4300.21022,0.00034931,2]
[311219965,1704985853626,-672.588135,0.00034931,2]
[311219966,1704985853635,-225.26176304,0.00034989,2]
[311219967,1704985853645,-1446.28636383,0.0003499,8]
[311219968,1704985853654,-4686.7702492,0.00034997,2]
[311219969,1704985853664,-193.93,0.00034998,2]
[311219970,1704985853673,-193.93,0.00034998,2]
[311219971,1704985853683,-150.0,0.00034998,2]
[311219972,1704985853692,-154.73282768,0.00034998,2]
[311219973,1704985853701,-707.86838223,0.00034999,2]
[311219974,1704985853711,-138186.76287995,0.00034999,2]
[311219975,1704985853720,-351.79820955,0.00035,4]
[311219976,1704985853732,-185.50990881,0.00035,4]
[311219977,1704985853741,-16421.55414446,0.00035,2]
[311219978,1704985853750,-5000.0,0.00035,2]
[311219979,1704985853760,-35138.57616423,0.00035,2]
[311219980,1704985853769,-16499.22203045,0.00035,2]
[311219981,1704985853779,-15716.17370559,0.00035,7]
[311219982,1704985853789,-2500.0,0.00035,2]
[311219983,1704985853798,-88856.17070264,0.00035,2]
[311219984,1704985853808,-250.0,0.00035,120]
[311219985,1704985853817,-620.87228107,0.00035,4]
[311219986,1704985853827,-23066.9346401,0.00035,7]
[311219987,1704985853837,-332.37554266,0.00035,7]
[311219988,1704985853847,-1000.0,0.00035,2]
[311219989,1704985853857,-300.0,0.00035,36]
[311219990,1704985853866,-600.0,0.00035,3]
[311219991,1704985853876,-7761.534047,0.00035068,2]
[311219992,1704985853885,-5375.262775,0.00035068,2]
[311219993,1704985853895,-840.735169,0.00035068,2]
[311219994,1704985853905,-269.75,0.00035089,2]
[311219995,1704985853914,-168.04,0.00035109,2]
[311219996,1704985853924,-204.0,0.00035138,5]
[311219997,1704985853934,-229.85,0.00035213,2]
[311219998,1704985853943,-269.75,0.00035258,2]
[311219999,1704985853953,-10866.147666,0.00035342,2]
[311220000,1704985853963,-7525.367885,0.00035342,2]
[311220001,1704985853972,-1177.029237,0.00035342,2]
[311220002,1704985853982,-153.84,0.00035362,2]
[311220003,1704985853991,-269.75,0.00035428,2]
[311220004,1704985854000,-1234.7,0.00035585,10]
[311220005,1704985854009,-4804.0,0.00035595,30]
[311220006,1704985854019,-4804.0,0.00035595,60]
[311220007,1704985854028,-449.1664085,0.00035633,7]
[311220008,1704985854037,-190.55,0.00035798,2]
[311220009,1704985854046,-31401.91,0.00036,30]
[311220010,1704985854056,-9547.59875597,0.00036,4]
[311220011,1704985854065,-250.0,0.00036,120]
[311220012,1704985854074,-15000.0,0.00036,2]
[311220013,1704985854083,-5230.0,0.00036,2]
[311220014,1704985854093,-150.45,0.00036,2]
[311220015,1704985854102,-150.45,0.00036,2]
[311220016,1704985854112,-150.45,0.00036,2]
[311220017,1704985854122,-150.45,0.00036,2]
[311220018,1704985854132,-168.04,0.00036088,2]
[311220019,1704985854141,-679.18470598,0.00036089,2]
[311220020,1704985854152,-679.18470591,0.00036089,2]
[311220021,1704985854162,-679.18470591,0.00036089,2]
[311220022,1704985854172,-163.14,0.00036091,2]
[311220023,1704985854182,-150.45,0.00036132,2]
[311220024,1704985854191,-461.8,0.00036141,2]
[311220025,1704985854201,-65099.91729195,0.00036142,2]
[311220026,1704985854211,-200.0,0.00036271,2]
[311220027,1704985854221,-153.84,0.00036402,2]
[311220028,1704985854235,-198.5723961,0.00036409,2]
[311220029,1704985854244,-150.36366081,0.00036409,2]
[311220030,1704985854253,-7205.04186506,0.00036418,9]
[311220031,1704985854262,-1297.81403609,0.00036479,2]
[311220032,1704985854271,-229.85,0.00036495,2]
[311220033,1704985854281,-150.45,0.00036499,2]
[311220034,1704985854290,-234264.25242541,0.00036509,13]
[311220035,1704985854299,-63393.38577506,0.00036509,13]
[311220036,1704985854308,-2190.32917891,0.00036509,10]
[311220037,1704985854318,-5800.58941234,0.00036509,10]
[311220038,1704985854328,-150.39533009,0.00036595,30]
[311220039,1704985854338,-397.28,0.00036613,15]
[311220040,1704985854348,-1077.90092378,0.000367,2]
[311220041,1704985854357,-679.18470591,0.00036752,2]
[311220042,1704985854368,-449.1664085,0.00036847,8]
[311220043,1704985854377,-250.0,0.000369,2]
[311220044,1704985854387,-150.0,0.000369,2]
[311220045,1704985854397,-204.0,0.00036914,9]
[311220046,1704985854408,-150.45,0.0003699,2]
[311220047,1704985854417,-5000.0,0.00037,3]
[311220048,1704985854427,-250.0,0.00037,120]
[311220049,1704985854437,-650.0,0.00037,3]
[311220050,1704985854446,-253.44334719,0.00037,20]
[311220051,1704985854456,-155.0,0.00037,2]
[311220052,1704985854465,-35214.8,0.00037,30]
[311220053,1704985854476,-1906.976045,0.0003701,2]
[311220054,1704985854486,-1857.387872,0.0003701,2]
[311220055,1704985854496,-762.351343,0.0003701,2]